lending/lending_fUSD_20240131
["ID","MTS","AMOUNT","RATE_DAILY","PERIOD"]
[313093562,1706736711117,-1686.6,0.00049863,7]
[313093563,1706736711127,-1759.87,0.00049863,30]
[313093564,1706736711137,-1262.64,0.00049863,30]
[313093565,1706736711146,-500.0,0.00049863,30]
[313093566,1706736711155,-796.91,0.00049863,30]
[313093567,1706736711165,-615.62806077,0.00049863,30]
[313093568,1706736711174,-1511.96,0.00049863,30]
[313093569,1706736711183,-529.4,0.00049863,30]
[313093570,1706736711193,-3011.45,0.00049863,30]
[313093571,1706736711202,-902.1,0.00049863,30]
[313093572,1706736711214,-662.47,0.00049863,30]
[313093573,1706736711223,-812.18,0.00049863,30]
[313093574,1706736711232,-742.82,0.00049863,30]
[313093575,1706736711244,-928.46,0.00049863,30]
[313093576,1706736711254,-638.32,0.00049863,30]
[313093577,1706736711264,-1136.51,0.00049863,30]
[313093578,1706736711273,-914.58,0.00049863,30]
[313093579,1706736711283,-1957.6,0.00049863,30]
[313093580,1706736711292,-1785.32,0.00049863,30]
[313093581,1706736711302,-729.97,0.00049863,30]
[313093582,1706736711312,-652.82,0.00049863,30]
[313093583,1706736711326,-963.87,0.00049863,30]
[313093584,1706736711336,-587.33,0.00049863,30]
[313093585,1706736711346,-540.51,0.00049863,30]
[313093586,1706736711356,-1505.83,0.00049863,30]
[313093587,1706736711366,-1344.23,0.00049863,30]
[313093588,1706736711376,-715.02,0.00049863,30]
[313093589,1706736711385,-823.24,0.00049863,30]
[313093590,1706736711395,-3815.84,0.00049863,30]
[313093591,1706736711405,-533.75,0.00049863,30]
[313093592,1706736711415,-601.94,0.00049863,30]
[313093593,1706736711424,-2237.3,0.00049863,5]
[313093594,1706736711434,-789.41,0.00049863,30]
[313093595,1706736711443,-719.21,0.00049863,30]
[313093596,1706736711453,-651.31,0.00049863,30]
[313093597,1706736711462,-1657.29,0.00049863,30]
[313093598,1706736711472,-812.12,0.00049863,30]
[313093599,1706736711481,-1780.38,0.00049863,30]
[313093600,1706736711491,-500.0,0.00049863,30]
[313093601,1706736711501,-652.83,0.00049863,30]
[313093602,1706736711510,-791.3,0.00049863,30]
[313093603,1706736711520,-849.04,0.00049863,30]
[313093604,1706736711530,-1524.13,0.00049863,30]
[313093605,1706736711539,-2731.97,0.00049863,30]
[313093606,1706736711548,-1537.1,0.00049863,30]
[313093607,1706736711558,-571.63,0.00049863,30]
[313093608,1706736711569,-640.29,0.00049863,30]
[313093609,1706736711578,-500.0,0.00049863,30]
[313093610,1706736711588,-700.08,0.00049863,30]
[313093611,1706736711598,-20006.34,0.00049863,30]
[313093612,1706736711608,-726.47,0.00049863,30]
[313093613,1706736711618,-948.65,0.00049863,30]
[313093614,1706736711627,-510.24,0.00049863,30]
[313093615,1706736711637,-800.64,0.00049863,30]
[313093616,1706736711646,-581.17,0.00049863,30]
[313093617,1706736711655,-411.42582707,0.00049863,30]
[313093618,1706736711665,-567.51,0.00049863,30]
[313093619,1706736711674,-1484.95,0.00049863,30]
[313093620,1706736711683,-1619.55,0.00049863,30]
[313093621,1706736711692,-791.85,0.00049863,30]
[313093622,1706736711702,-604.26,0.00049863,30]
[313093623,1706736711711,-679.29,0.00049863,2]
[313093624,1706736711720,-862.32,0.00049863,30]
[313093625,1706736711730,-3247.43,0.00049863,30]
[313093626,1706736711739,-2628.35,0.00049863,30]
[313093627,1706736711749,-1000.23,0.00049863,30]
[313093628,1706736711758,-500.0,0.00049863,30]
[313093629,1706736711768,-1155.57,0.00049863,30]
[313093630,1706736711778,-678.92,0.00049863,30]
[313093631,1706736711788,-1333.1,0.00049863,30]
[313093632,1706736711798,-1036.02,0.00049863,5]
[313093633,1706736711808,-500.0,0.00049863,30]
[313093634,1706736711820,-155.38433566,0.0004989,7]
[313093635,1706736711830,-2673.71308294,0.00049898,50]
[313093636,1706736711839,-399504.37164219,0.000499,120]
[313093637,1706736711849,-5250.0,0.000499,13]
[313093638,1706736711858,-5250.0,0.000499,30]
[313093639,1706736711867,-5250.0,0.000499,31]
[313093640,1706736711876,-2854.41677881,0.000499,2]
[313093641,1706736711885,-5250.0,0.000499,12]
[313093642,1706736711894,-186659.73348664,0.000499,7]
[313093643,1706736711904,-9624.56556865,0.000499,5]
[313093644,1706736711913,-511458.38679611,0.000499,7]
[313093645,1706736711922,-1000.0,0.000499,2]
[313093646,1706736711931,-783.56758742,0.0004991,30]
[313093647,1706736711941,-352.8,0.00049932,30]
[313093648,1706736711951,-151.75508022,0.00049934,30]
[313093649,1706736711961,-175.00563788,0.00049948,30]
[313093650,1706736711970,-150.36800339,0.00049964,30]
[313093651,1706736711979,-300.0,0.0004997,3]
[313093652,1706736711989,-837.34397763,0.0004998,5]
[313093653,1706736711998,-150.36800339,0.0004998,30]
[313093654,1706736712007,-200.0,0.00049987,44]
[313093655,1706736712017,-200.0,0.00049987,39]
[313093656,1706736712027,-2697.0,0.0004999,2]
[313093657,1706736712037,-2699.0,0.0004999,2]
[313093658,1706736712046,-179.86767897,0.00049995,120]
[313093659,1706736712055,-5583.57110911,0.00049998,120]
[313093660,1706736712064,-500.0,0.00049999,120]
[313093661,1706736712075,-409.73573912,0.00049999,120]
[313093662,1706736712084,-500.0,0.00049999,120]
[313093663,1706736712093,-500.0,0.00049999,120]
[313093664,1706736712102,-500.0,0.00049999,120]
[313093665,1706736712111,-500.0,0.00049999,120]
[313093666,1706736712119,-500.0,0.00049999,120]
[313093667,1706736712128,-354.39107011,0.00049999,120]
[313093668,1706736712137,-500.0,0.00049999,120]
[313093669,1706736712146,-164.94453712,0.00049999,120]
[313093670,1706736712155,-500.0,0.00049999,120]
[313093671,1706736712164,-500.0,0.00049999,120]
[313093672,1706736712173,-528.76707994,0.00049999,120]
[313093673,1706736712182,-500.0,0.00049999,120]
[313093674,1706736712190,-500.0,0.00049999,120]
[313093675,1706736712199,-500.0,0.00049999,120]
[313093676,1706736712209,-478.85377339,0.00049999,120]
[313093677,1706736712218,-500.0,0.00049999,120]
[313093678,1706736712228,-500.0,0.00049999,120]
[313093679,1706736712237,-500.0,0.00049999,120]
[313093680,1706736712250,-500.0,0.00049999,120]
[313093681,1706736712259,-297.9094469,0.00049999,120]
[313093682,1706736712267,-418.29101505,0.00049999,120]
[313093683,1706736712277,-500.0,0.00049999,120]
[313093684,1706736712286,-500.0,0.00049999,120]
[313093685,1706736712295,-500.0,0.00049999,120]
[313093686,1706736712304,-500.0,0.00049999,120]
[313093687,1706736712313,-500.0,0.00049999,120]
[313093688,1706736712326,-500.0,0.00049999,120]
[313093689,1706736712335,-275.51685575,0.00049999,120]
[313093690,1706736712344,-500.0,0.00049999,120]
[313093691,1706736712354,-500.0,0.00049999,120]
[313093692,1706736712363,-500.0,0.00049999,120]
[313093693,1706736712372,-500.0,0.00049999,120]
[313093694,1706736712381,-500.0,0.00049999,120]
[313093695,1706736712390,-617.90309127,0.00049999,120]
[313093696,1706736712399,-500.0,0.00049999,120]
[313093697,1706736712408,-500.0,0.00049999,120]
[313093698,1706736712417,-500.0,0.00049999,120]
[313093699,1706736712426,-500.0,0.00049999,120]
[313093700,1706736712434,-500.0,0.00049999,120]
[313093701,1706736712443,-486.31293523,0.00049999,120]
[313093702,1706736712452,-6395.71986709,0.0005,40]
[313093703,1706736713031,-165.30239559,0.00022516,2]
[313093704,1706736713041,-289.73142306,0.00022516,2]
[313093705,1706736713053,-54.4659223,0.00022516,2]
[313093706,1706736713061,-155.0,0.00022781,2]
[313093707,1706736713072,-371.63566507,0.00022897,2]
[313093708,1706736713081,-167.99176381,0.00022898,2]
[313093709,1706736713091,-175.95756179,0.00022899,2]
[313093710,1706736713100,-239.88481281,0.00022899,2]
[313093711,1706736713109,-362.63221903,0.00022899,2]
[313093712,1706736713119,-296.68841754,0.00022899,2]
[313093713,1706736713128,-283.65098728,0.00022899,2]
[313093714,1706736713137,-9.39265037,0.00022899,2]
[313093715,1706736713148,-204.76565864,0.00022899,2]
[313093716,1706736713158,-245.41926485,0.00022899,2]
[313093717,1706736713167,-475.35355528,0.000229,6]
[313093718,1706736713176,-258.74054435,0.00022999,2]
[313093719,1706736713185,-202.88847941,0.00024999,2]
[313093720,1706736713194,-112.763851,0.00036,2]
[313093721,1706736713214,-1315.59863163,0.00022997,2]
[313093722,1706736713225,-57.236149,0.00036,2]
[313093723,1706736713234,-170.0,0.00037397,2]
[313093724,1706736713243,-500.0,0.00038356,5]
[313093725,1706736713253,-491.87,0.00038356,5]
[313093726,1706736713263,-500.0,0.00038904,5]
[313093727,1706736713272,-173.0,0.00039267,14]
[313093728,1706736713281,-500.0,0.00039452,5]
[313093729,1706736713291,-500.0,0.0004,5]
[313093730,1706736713301,-500.0,0.00040547,5]
[313093731,1706736713310,-500.0,0.00041095,5]
[313093732,1706736713321,-500.0,0.00041643,5]
[313093733,1706736713331,-613.66151764,0.00041673,30]
[313093734,1706736713340,-562.51249409,0.00044383,5]
[313093735,1706736713349,-170.0,0.00047121,90]
[313093736,1706736713358,-509.62,0.00049315,30]
[313093737,1706736713367,-509.62,0.00049863,30]
[313093738,1706736713376,-43604.28013291,0.0005,40]
[313093739,1706736713386,-1516.0,0.0005,60]
[313093740,1706736713394,-484.48606935,0.0005,15]
[313093741,1706736713403,-10000.0,0.0005,30]
[313093742,1706736713411,-1357.82202609,0.0005,30]
[313093743,1706736713423,-414.58249559,0.0005,30]
[313093744,1706736713712,14455.68821814,0.00022387,2]
[313093745,1706736713823,1000.0,0.00022465,2]
[313093746,1706736713872,-332.25105627,0.00022547,2]
[313093747,1706736714089,-382.64894373,0.00022547,2]
[313093748,1706736714100,-155.71638194,0.00022897,2]
[313093749,1706736714110,-155.39805555,0.00022897,2]
[313093750,1706736714119,-407.19395765,0.00022897,2]
[313093751,1706736714129,-155.43310874,0.00022897,2]
[313093752,1706736714138,-155.27174667,0.00022897,2]
[313093753,1706736714146,-155.0,0.00022897,2]
[313093754,1706736714155,-626.0,0.00022899,2]
[313093755,1706736714164,-2816.10851923,0.000229,2]
[313093756,1706736714174,-2367.10835169,0.00022999,2]
[313093757,1706736714183,-155.0,0.00024999,2]
[313093758,1706736714193,-873.90332348,0.00024999,2]
[313093759,1706736714202,-287.39114961,0.00024999,2]
[313093760,1706736714213,-1081.98588942,0.00024999,2]
[313093761,1706736714222,-2969.92787229,0.00024999,2]
[313093762,1706736714268,-1052.28504407,0.00024999,2]
[313093763,1706736714279,-523.94265105,0.00024999,2]
[313093764,1706736714289,-228.42068656,0.0002715,13]
[313093765,1706736714301,-246.9328687,0.0002715,13]
[313093766,1706736714311,-500.0,0.00042191,5]
[313093767,1706736714323,-500.0,0.00042739,5]
[313093768,1706736714332,-500.0,0.00043287,5]
[313093769,1706736714341,-407.77916029,0.00043835,5]
[313093770,1706736714357,-92.22083971,0.00043835,5]
[313093771,1706736714367,-375.34821376,0.00044383,5]
[313093772,1706736714377,-4667.59547832,0.0005,30]
[313093773,1706736714386,-1014.0,0.0005,120]
[313093774,1706736714396,-2036.58579777,0.0005,120]
[313093775,1706736714405,-10213.39242268,0.0005,5]
[313093776,1706736714415,-5200.0,0.0005,30]
[313093777,1706736714425,-688.69964469,0.0005,30]
[313093778,1706736714435,-187942.15760311,0.0005,30]
[313093779,1706736714447,-2924.85933007,0.0005,30]
[313093780,1706736714552,-158.8993738,0.00022896,2]
[313093781,1706736714563,-155.0,0.00022998,2]
[313093782,1706736714577,-255.0,0.0004,12]
[313093783,1706736714588,-3834.5913652,0.0005,30]
[313093784,1706736714603,-4238.6824,0.0005,30]
[313093785,1706736714631,-1634.171,0.0005,30]
[313093786,1706736714854,-531.15,0.00022896,2]
[313093787,1706736715052,-10.99027525,0.00022896,2]
[313093788,1706736715062,-320.00368651,0.000229,2]
[313093789,1706736715078,-399.38933374,0.000229,2]
[313093790,1706736715089,-1133.74999999,0.000229,2]
[313093791,1706736715853,184.7423,0.00022402,2]
[313093792,1706736716029,223.7949929,0.00022499,2]
[313093793,1706736717512,4221.6086,0.00022464,2]
[313093794,1706736717674,8457.25633301,0.00020696,5]
[313093795,1706736719379,222.39757032,0.00022386,2]
[313093796,1706736719482,155.0,0.00022386,2]
[313093797,1706736719560,210.8048654,0.00022385,2]
[313093798,1706736719794,525.21369596,0.00022384,2]
[313093799,1706736721748,1856.32849653,0.00022385,2]
[313093800,1706736724367,1277.437,0.00022465,2]
[313093801,1706736726087,41012.01243192,0.00022465,2]
[313093802,1706736726113,203987.98756808,0.00022465,2]
[313093803,1706736753808,205.0,0.00021855,2]
[313093804,1706736857843,250.0,0.00022332,2]
[313093805,1706736866078,166.09,0.0002213,2]
[313093806,1706736891095,157.65,0.00022059,2]
[313093807,1706737037447,1000.0,0.0002189,2]
[313093808,1706737115984,248.51,0.00019973,2]
[313093809,1706737116176,248.51,0.00022237,2]
[313093810,1706737172265,402.21,0.00021897,2]
[313093811,1706737353208,250.0,0.00021918,2]
[313093812,1706737353423,1016.8091,0.00022411,2]
[313093813,1706737420654,160.45280182,0.00022437,2]
[313093814,1706737438406,1201.70190972,0.00022436,2]
[313093815,1706737438796,1201.70190973,0.000225,2]
[313093816,1706737459244,215.57,0.00021894,2]
[313093817,1706737470130,200.0,0.00021829,2]
[313093818,1706737508404,222.16,0.00021821,2]
[313093819,1706737513895,200.0,0.00021894,2]
[313093820,1706737540772,334.07,0.00021826,2]
[313093821,1706737588429,250.0,0.00021894,2]
[313093822,1706737590510,223.65,0.00019882,2]
[313093823,1706737590743,223.65,0.00022146,2]
[313093824,1706737641754,282.10582252,0.00022146,15]
[313093825,1706737657713,272.45863791,0.00022146,15]
[313093826,1706737675709,272.45863791,0.00022146,15]
[313093827,1706737679424,4938.7382,0.000225,2]
[313093828,1706737686390,214.6,0.00021776,2]
[313093829,1706737691702,272.45863791,0.00022146,15]
[313093830,1706737725712,176.54451989,0.00022146,15]
[313093831,1706737726313,215123.027,0.000225,2]
[313093832,1706737745283,5425.7745,0.000225,2]
[313093833,1706737767999,160.06,0.00021808,2]
[313093834,1706737769774,285.11,0.00021808,2]
[313093835,1706737774950,525.21369596,0.00022501,2]
[313093836,1706737777167,502.73699602,0.00022501,2]
[313093837,1706737779361,19049.43084003,0.00022501,2]
[313093838,1706737793133,157.94,0.00022002,2]
[313093839,1706737793335,155.0,0.00022501,2]
[313093840,1706737802506,249.46647659,0.00022501,2]
[313093841,1706737807274,4648.55054308,0.00022501,2]
[313093842,1706737807638,19412.70663679,0.00022495,2]
[313093843,1706737810183,250.0,0.00021918,2]
[313093844,1706737814426,232.66191462,0.00022501,2]
[313093845,1706737816526,4638.55770228,0.00022501,2]
[313093846,1706737816991,24410.55467101,0.00022501,2]
[313093847,1706737821371,1857.32583047,0.00022501,2]
[313093848,1706737822120,526.53963541,0.00022501,2]
[313093849,1706737827453,215.68669268,0.00022501,2]
[313093858,1706737832125,-155.0,0.00022502,2]
[313093859,1706737832137,-413.22910588,0.00022502,2]
[313093860,1706737832150,-159.23228713,0.00022502,2]
[313093861,1706737832159,-5228.78655032,0.00022502,2]
[313093862,1706737832168,-2788.02134693,0.00022502,2]
[313093863,1706737832181,-510.89471843,0.00022503,2]
[313093864,1706737832190,-9166.69366251,0.00022503,2]
[313093865,1706737832203,-2235.11098653,0.00022503,2]
[313093866,1706737832219,-3882.49539687,0.00022503,2]
[313093867,1706737832228,-195.90438214,0.00022503,2]
[313093868,1706737832237,-155.0,0.00022503,2]
[313093869,1706737832246,-249.52274701,0.00022503,2]
[313093870,1706737832255,-150.0,0.00022513,2]
[313093871,1706737832264,-999.99,0.00022536,2]
[313093872,1706737832273,-1000.0,0.00022536,2]
[313093873,1706737832282,-428.71667088,0.00022564,5]
[313093874,1706737832291,-322.86,0.00022564,2]
[313093875,1706737832300,-212.45542696,0.00022598,2]
[313093876,1706737832310,-3392.2421284,0.00022599,2]
[313093877,1706737832319,-33613.53613009,0.000226,2]
[313093878,1706737832330,-1804.49951785,0.000226,2]
[313093879,1706737832346,-811.05669613,0.000226,2]
[313093880,1706737832365,-403.9,0.000226,2]
[313093881,1706737832377,-948.21495962,0.000226,2]
[313093882,1706737832388,-513.45189583,0.000226,2]
[313093958,1706737838171,-328.92787868,0.00022598,2]
[313093959,1706737838243,-510.24774951,0.00022598,2]
[313093960,1706737838314,-994.8874949,0.00022598,2]
[313093961,1706737838324,-608.27739531,0.00022598,2]
[313093962,1706737838334,-295.24477713,0.00022598,2]
[313093963,1706737838345,-91614.69602023,0.000226,2]
[313093964,1706737838355,-714.28,0.000226,2]
[313093965,1706737838364,-426.37,0.000226,2]
[313093966,1706737838374,-6625.75102863,0.000226,2]
[313093967,1706737838386,-8594.75897137,0.000226,2]
[313093968,1706737838395,-155.0,0.0002261,2]
[313093969,1706737838405,-501.45305312,0.00022728,2]
[313093970,1706737838415,-500.0,0.00022764,2]
[313093971,1706737838425,-500.0,0.00022764,2]
[313093972,1706737838436,-500.0,0.00022764,2]
[313093973,1706737838445,-500.0,0.00022764,2]
[313093974,1706737838455,-500.0,0.00022764,2]
[313093975,1706737838465,-500.0,0.00022764,2]
[313093976,1706737838475,-500.0,0.00022764,2]
[313093977,1706737838484,-500.0,0.00022764,2]
[313093978,1706737838494,-500.0,0.00022764,2]
[313093979,1706737838504,-500.0,0.00022764,2]
[313093980,1706737838513,-515.83462321,0.00022764,2]
[313093981,1706737838523,-500.0,0.00022764,2]
[313093982,1706737838534,-500.0,0.00022764,2]
[313093983,1706737838544,-500.0,0.00022764,2]
[313093984,1706737838556,-500.0,0.00022764,2]
[313093985,1706737838566,-500.0,0.00022764,2]
[313093986,1706737838576,-500.0,0.00022764,2]
[313093987,1706737838586,-500.0,0.00022764,2]
[313093988,1706737838598,-500.0,0.00022764,2]
[313093989,1706737838608,-500.0,0.00022764,2]
[313093990,1706737838617,-500.0,0.00022764,2]
[313093991,1706737838627,-347.399609,0.00022764,2]
[313093992,1706737838637,-500.0,0.00022764,2]
[313093993,1706737838648,-500.0,0.00022764,2]
[313093994,1706737838658,-500.0,0.00022764,2]
[313093995,1706737838667,-500.0,0.00022764,2]
[313093997,1706737838678,-500.0,0.00022764,2]
[313093999,1706737838687,-500.0,0.00022764,2]
[313094000,1706737838697,-500.0,0.00022764,2]
[313094001,1706737838706,-500.0,0.00022764,2]
[313094002,1706737838716,-500.0,0.00022764,2]
[313094003,1706737838725,-500.0,0.00022764,2]
[313094004,1706737838735,-500.0,0.00022764,2]
[313094005,1706737838745,-500.0,0.00022764,2]
[313094006,1706737838755,-500.0,0.00022764,2]
[313094007,1706737838765,-500.0,0.00022764,2]
[313094008,1706737838775,-93.47011741,0.00022764,2]
[313094009,1706737838787,-406.52988259,0.00022764,2]
[313094010,1706737838797,-500.0,0.00022764,2]
[313094011,1706737838807,-500.0,0.00022764,2]
[313094012,1706737838817,-500.0,0.00022764,2]
[313094013,1706737838827,-500.0,0.00022764,2]
[313094014,1706737838837,-500.0,0.00022764,2]
[313094015,1706737838847,-500.0,0.00022764,2]
[313094016,1706737838858,-500.0,0.00022764,2]
[313094017,1706737838867,-500.0,0.00022764,2]
[313094018,1706737838877,-500.0,0.00022764,2]
[313094019,1706737838887,-500.0,0.00022764,2]
[313094020,1706737838897,-500.0,0.00022764,2]
[313094021,1706737838906,-500.0,0.00022764,2]
[313094022,1706737838916,-500.0,0.00022764,2]
[313094023,1706737838929,-500.0,0.00022764,2]
[313094024,1706737838939,-500.0,0.00022764,2]
[313094025,1706737838949,-500.0,0.00022764,2]
[313094026,1706737838959,-500.0,0.00022764,2]
[313094027,1706737838969,-500.0,0.00022764,2]
[313094028,1706737838979,-500.0,0.00022764,2]
[313094029,1706737838990,-500.0,0.00022764,2]
[313094030,1706737839000,-500.0,0.00022764,2]
[313094031,1706737839010,-500.0,0.00022764,2]
[313094032,1706737839022,-500.0,0.00022764,2]
[313094033,1706737839032,-500.0,0.00022764,2]
[313094034,1706737839042,-500.0,0.00022764,2]
[313094035,1706737839052,-500.0,0.00022764,2]
[313094036,1706737839063,-500.0,0.00022764,2]
[313094037,1706737839073,-500.0,0.00022764,2]
[313094038,1706737839083,-500.0,0.00022764,2]
[313094039,1706737839092,-500.0,0.00022764,2]
[313094040,1706737839102,-500.0,0.00022764,2]
[313094041,1706737839112,-500.0,0.00022764,2]
[313094042,1706737839122,-500.0,0.00022764,2]
[313094043,1706737839131,-249.02939524,0.00022764,2]
[313094044,1706737839141,-500.0,0.00022764,2]
[313094045,1706737839151,-500.0,0.00022764,2]
[313094046,1706737839161,-500.0,0.00022764,2]
[313094047,1706737839171,-500.0,0.00022764,2]
[313094048,1706737839183,-500.0,0.00022764,2]
[313094049,1706737839192,-500.0,0.00022764,2]
[313094050,1706737839202,-500.0,0.00022764,2]
[313094051,1706737839213,-500.0,0.00022764,2]
[313094052,1706737839222,-500.0,0.00022764,2]
[313094053,1706737839232,-500.0,0.00022764,2]
[313094054,1706737839242,-500.0,0.00022764,2]
[313094055,1706737839252,-500.0,0.00022764,2]
[313094056,1706737839262,-500.0,0.00022764,2]
[313094057,1706737839272,-500.0,0.00022764,2]
[313094058,1706737839282,-162.64121817,0.00022765,2]
[313094059,1706737839292,-6351.20228399,0.00022765,2]
[313094060,1706737839305,-188639.3669997,0.00022765,2]
[313094061,1706737839317,-20777.93142732,0.00022765,2]
[313094062,1706737839329,-825.2478857,0.00022765,2]
[313094063,1706737839341,-323.0012525,0.00022765,2]
[313094064,1706737839361,-739.337599,0.00022765,2]
[313094065,1706737839373,-4866.95090215,0.00022765,2]
[313094066,1706737839385,-1340.12807225,0.00022765,2]
[313094067,1706737839410,-835883.58852096,0.00022765,2]
[313094068,1706737839420,-3828.48490855,0.00022766,2]
[313094069,1706737839431,-240.65679579,0.00022767,4]
[313094070,1706737839441,-163.84839436,0.000228,2]
[313094071,1706737839451,-205.31699869,0.000228,4]
[313094072,1706737839657,-1848.89264938,0.000228,2]
[313094073,1706737839667,-2687.36425712,0.000228,2]
[313094074,1706737839676,-4268.31,0.00022828,2]
[313094075,1706737839686,-762.26,0.00022828,2]
[313094076,1706737839694,-5524.39,0.00022829,2]
[313094077,1706737839703,-499.99,0.00022829,2]
[313094078,1706737839712,-400.0,0.00022849,2]
[313094079,1706737839721,-874.8285,0.00022877,10]
[313094080,1706737839730,-800.0,0.00022877,2]
[313094081,1706737839739,-151.55843082,0.0002289,2]
[313094082,1706737839749,-228.3602233,0.00022891,2]
[313094083,1706737839759,-1331.92307958,0.00022891,2]
[313094084,1706737839768,-432.75226238,0.00022891,2]
[313094085,1706737839777,-745.07487801,0.00022891,2]
[313094086,1706737839786,-201.21535719,0.00022891,2]
[313094087,1706737839795,-3333.04721489,0.00022891,2]
[313094088,1706737839805,-426.96015302,0.00022891,2]
[313094089,1706737839815,-3234.95429051,0.00022892,2]
[313094090,1706737839824,-155.32764574,0.00022893,2]
[313094091,1706737839833,-524.74206108,0.00022893,2]
[313094092,1706737839843,-181.70651298,0.00022893,2]
[313094093,1706737839853,-32260.35219724,0.00022893,2]
[313094094,1706737839862,-155.86402743,0.00022893,2]
[313094095,1706737839871,-172.02741418,0.00022893,2]
[313094096,1706737839881,-155.58071743,0.00022893,2]
[313094097,1706737839890,-434.66438876,0.00022893,2]
[313094098,1706737839899,-241.07606728,0.00022893,2]
[313094099,1706737839908,-349.95702309,0.00022893,2]
[313094100,1706737839917,-155.0,0.00022893,2]
[313094101,1706737839926,-970.53281602,0.00022893,2]
[313094102,1706737839936,-513.10638129,0.00022893,2]
[313094103,1706737839945,-336.72694485,0.00022893,2]
[313094104,1706737839955,-157.62309731,0.00022893,2]
[313094105,1706737839964,-155.0,0.00022893,2]
[313094106,1706737839973,-1948.88232519,0.00022893,2]
[313094108,1706737839982,-155.3207105,0.00022893,2]
[313094110,1706737839992,-157.86817586,0.00022893,2]
[313094112,1706737840003,-155.62623426,0.00022893,2]
[313094114,1706737840013,-155.0744322,0.00022893,2]
[313094116,1706737840023,-228.83453251,0.00022893,2]
[313094118,1706737840033,-4882.23832841,0.00022893,2]
[313094119,1706737840043,-266.13518399,0.00022893,2]
[313094120,1706737840052,-504.03826774,0.00022893,2]
[313094121,1706737840062,-7232.61598302,0.00022893,2]
[313094123,1706737840071,-1374.81657454,0.00022893,2]
[313094124,1706737840080,-345.64233863,0.00022893,2]
[313094125,1706737840090,-1245.40466885,0.00022893,2]
[313094126,1706737840099,-207.22351208,0.00022893,2]
[313094127,1706737840108,-259.51350751,0.00022893,2]
[313094128,1706737840118,-541.97303747,0.00022893,2]
[313094129,1706737840127,-269.09022539,0.00022893,2]
[313094130,1706737840136,-603.33877856,0.00022894,2]
[313094131,1706737840146,-500.0,0.00022894,2]
[313094132,1706737840156,-324.04339551,0.00022894,2]
[313094133,1706737840165,-1139.07947528,0.00022894,2]
[313094134,1706737840175,-410.45065952,0.00022894,2]
[313094135,1706737840185,-392.87874065,0.00022894,2]
[313094136,1706737840195,-156.62849969,0.00022894,2]
[313094137,1706737840204,-226.83202517,0.00022894,2]
[313094138,1706737840213,-383.76753435,0.00022894,2]
[313094139,1706737840223,-246.91049352,0.00022894,2]
[313094140,1706737840232,-325.0531704,0.00022894,2]
[313094141,1706737840242,-155.44390996,0.00022894,2]
[313094142,1706737840251,-164.06048249,0.00022894,2]
[313094143,1706737840260,-155.19642721,0.00022894,2]
[313094144,1706737840270,-294.02403229,0.00022894,2]
[313094145,1706737840278,-831.61927221,0.00022894,2]
[313094146,1706737840288,-314.20154029,0.00022894,2]
[313094147,1706737840298,-1259.07435444,0.00022894,2]
[313094148,1706737840307,-199.03575703,0.00022894,2]
[313094149,1706737840316,-524.26850226,0.00022894,2]
[313094150,1706737840326,-481.02562885,0.00022894,2]
[313094151,1706737840335,-762.6005199,0.00022894,2]
[313094152,1706737840344,-332.79028713,0.00022894,2]
[313094153,1706737840354,-1122.12658466,0.00022895,2]